bitfinex/quotes_BTCUSD_20260308
["timestamp","ask_amount","ask_price","bid_price","bid_amount"]
[1772980942172,0.02629842,67103.0,67078.0,0.00152]
[1772980942527,0.02629842,67101.0,67079.0,0.00152]
[1772980942737,0.07451342,67102.0,67061.0,0.15674256]
[1772980942738,0.02629842,67089.0,67061.0,0.15674256]
[1772980942948,0.02781842,67089.0,67063.0,0.15674256]
[1772980943151,0.02629842,67089.0,67063.0,0.15674256]
[1772980943591,0.02629842,67089.0,67064.0,0.00152]
[1772980943925,0.02669582,67089.0,67062.0,0.15674256]
[1772980944136,0.02669582,67089.0,67064.0,0.15674256]
[1772980944343,0.02629842,67087.0,67065.0,0.00152]
[1772980944590,0.02629842,67087.0,67066.0,0.15674256]
[1772980944820,0.02629842,67087.0,67067.0,0.00152]
[1772980945016,0.02629842,67087.0,67068.0,0.00152]
[1772980945781,0.02629842,67087.0,67069.0,0.15674256]
[1772980946502,0.10082954,67087.0,67071.0,0.15674256]
[1772980946703,0.02629842,67086.0,67071.0,0.15674256]
[1772980947290,0.02629842,67086.0,67072.0,0.15826256]
[1772980947886,0.07452587,67091.0,67073.0,0.00152]
[1772980948101,0.07448587,67091.0,67074.0,0.15674256]
[1772980948830,0.02629842,67095.0,67076.0,0.15674256]
[1772980950954,0.07452231,67094.0,67078.0,0.15674256]
[1772980951155,0.07452231,67094.0,67077.0,0.07454119]
[1772980951156,0.02629842,67095.0,67080.0,0.15674256]
[1772980951373,0.07451708,67099.0,67080.0,0.15674256]
[1772980951863,0.02629842,67103.0,67080.0,0.15674256]
[1772980952073,0.10081081,67103.0,67080.0,0.15674256]
[1772980953199,0.02629842,67119.0,67084.0,0.1485708]
[1772980953401,0.02629842,67119.0,67087.0,0.366835]
[1772980953581,0.02629842,67119.0,67089.0,0.1485708]
[1772980953783,0.0003548,67120.0,67089.0,0.1485708]
[1772980953983,0.0003548,67120.0,67090.0,0.1485708]
[1772980954191,0.02629842,67119.0,67083.0,0.1485708]
[1772980954410,0.07659398,67117.0,67087.0,0.1485708]
[1772980954622,0.02629842,67116.0,67087.0,0.1485708]
[1772980955223,0.0243273,67114.0,67089.0,0.1485708]
[1772980955433,0.0243273,67114.0,67091.0,0.1485708]
[1772980960195,0.07450121,67113.0,67092.0,0.07452453]
[1772980960402,0.0243273,67112.0,67093.0,0.1485708]
[1772980962270,0.0243273,67111.0,67095.0,0.1485708]
[1772980962442,0.0243273,67111.0,67097.0,0.1485708]
[1772980963422,0.0243273,67111.0,67097.0,0.14869027]
[1772980965182,0.07450359,67111.0,67098.0,0.07451786]
[1772980965419,0.01087543,67110.0,67099.0,0.1485708]
[1772980965978,0.07450195,67113.0,67099.0,0.1485708]
[1772980966391,0.08537738,67113.0,67099.0,0.1485708]
[1772980966798,0.0003548,67120.0,67098.0,0.07451786]
[1772980967052,0.07484825,67120.0,67099.0,0.1485708]
[1772980967256,0.00022001,67121.0,67099.0,0.1485708]
[1772980967257,0.00022001,67121.0,67100.0,0.07451564]
[1772980967466,0.0004,67125.0,67101.0,0.1485708]
[1772980967687,0.0004,67125.0,67100.0,0.07451564]
[1772980967688,0.0004,67125.0,67103.0,0.1485708]
[1772980967983,0.07448013,67132.0,67103.0,0.1485708]
[1772980968178,0.00818391,67132.0,67103.0,0.1485708]
[1772980969521,0.08514165,67132.0,67105.0,0.1485708]
[1772980969706,0.07448012,67132.0,67105.0,0.1485708]
[1772980970001,0.07448012,67132.0,67104.0,0.0745112]
[1772980970002,0.01066153,67131.0,67107.0,0.1485708]
[1772980970773,0.08022912,67133.0,67107.0,0.1485708]
[1772980970980,0.09079956,67133.0,67107.0,0.1485708]
[1772980971183,0.01057044,67132.0,67107.0,0.1485708]
[1772980972163,0.01057044,67131.0,67109.0,0.1485708]
[1772980973459,0.01057044,67131.0,67109.0,0.1495708]
[1772980973810,0.01057044,67131.0,67109.0,0.1485708]
[1772980974082,0.01057044,67131.0,67110.0,0.07450454]
[1772980974300,0.01057044,67131.0,67111.0,0.1485708]
[1772980974433,0.01057044,67131.0,67113.0,0.1485708]
[1772980975811,0.01057044,67131.0,67110.0,0.07450454]
[1772980975812,0.0103635,67128.0,67099.0,0.0747164]
[1772980975991,0.2224678,67130.0,67099.0,0.0747164]
[1772980975992,0.07486618,67119.0,67101.0,0.00152]
[1772980976203,0.07486618,67119.0,67091.0,0.1485708]
[1772980976204,0.07314618,67114.0,67102.0,0.00152]
[1772980976491,0.07449677,67117.0,67103.0,0.00152]
[1772980976492,0.0103635,67112.0,67103.0,0.00152]
[1772980976687,0.0103635,67111.0,67103.0,0.00152]
[1772980977271,0.0103635,67111.0,67100.0,0.001]
[1772980977474,0.02086071,67110.0,67101.0,0.00152]
[1772980978058,0.07132944,67108.0,67102.0,0.00152]
[1772980978273,0.02086071,67106.0,67102.0,0.00152]
[1772980978676,0.02086071,67106.0,67103.0,0.00152]
[1772980979255,0.02086071,67104.0,67086.0,0.07453119]
[1772980979500,0.02086071,67104.0,67086.0,0.07465024]
[1772980979650,0.02086071,67104.0,67087.0,0.1500908]
[1772980980306,0.02086071,67102.0,67089.0,0.1485708]
[1772980981724,0.02086071,67102.0,67099.0,0.0002]
[1772980981937,0.02086071,67102.0,67100.0,0.00152]
[1772980982360,0.07451231,67104.0,67100.0,0.00152]
[1772980982552,0.02086071,67111.0,67100.0,0.1500908]
[1772980984327,0.02086071,67109.0,67100.0,0.1500908]
[1772980985349,0.02086071,67109.0,67101.0,0.00152]
[1772980985531,0.02071071,67109.0,67101.0,0.00152]
[1772980986156,0.07450454,67110.0,67101.0,0.14514767]
[1772980986358,0.07450454,67111.0,67101.0,0.14514767]
[1772980986359,0.07450565,67113.0,67101.0,0.14514767]
[1772980986598,0.02078571,67112.0,67101.0,0.14514767]
[1772980987266,0.02078571,67112.0,67090.0,0.14362767]
[1772980987392,0.02078571,67110.0,67091.0,0.07604564]
[1772980988000,0.02078571,67110.0,67091.0,0.21967331]
[1772980988254,0.02078571,67110.0,67091.0,0.21815331]
[1772980988408,0.02078571,67107.0,67092.0,0.00152]
[1772980988609,0.02078571,67107.0,67090.0,0.07452637]
[1772980988610,0.02078571,67106.0,67093.0,0.00152]
[1772980989035,0.07450676,67108.0,67090.0,0.07452637]
[1772980989036,0.02078571,67105.0,67094.0,0.00152]
[1772980989234,0.02078571,67104.0,67094.0,0.00152]
[1772980989436,0.02078571,67104.0,67090.0,0.07452668]
[1772980989639,0.02078571,67104.0,67095.0,0.00152]
[1772980989823,0.02078571,67104.0,67089.0,0.07452564]
[1772980989824,0.02078571,67104.0,67087.0,0.21815765]
[1772980990249,0.02078571,67104.0,67088.0,0.00152]
[1772980990443,0.02078571,67104.0,67087.0,0.21815755]
[1772980990444,0.07451231,67103.0,67087.0,0.14362767]
[1772980990650,0.07451231,67103.0,67087.0,0.0002]
[1772980990651,0.02078571,67102.0,67087.0,0.0002]
[1772980990849,0.02078571,67100.0,67087.0,0.0002]
[1772980991106,0.14547798,67098.0,67087.0,0.0002]
[1772980991261,0.02078571,67097.0,67088.0,0.00152]
[1772980991460,0.02078571,67097.0,67089.0,0.00152]
[1772980992033,0.02078571,67102.0,67090.0,0.14362767]
[1772980992234,0.02078571,67102.0,67091.0,0.00152]
[1772980992682,0.02078571,67100.0,67091.0,0.00152]
[1772980993468,0.02078571,67100.0,67092.0,0.00152]
[1772980994232,0.07451453,67101.0,67092.0,0.00152]
[1772980994233,0.02078571,67098.0,67092.0,0.00152]
[1772980994363,0.14547798,67095.0,67093.0,0.00152]
[1772980994576,0.07452231,67094.0,67093.0,0.00152]
[1772980994783,0.07452231,67094.0,67079.0,0.00575]
[1772980994784,0.14547798,67091.0,67090.0,0.00152]
[1772980994983,0.16626369,67091.0,67090.0,0.00152]
[1772980995185,0.14547798,67089.0,67075.0,0.0004]
[1772980995394,0.02078571,67087.0,67076.0,0.00152]
[1772980996989,0.02078571,67085.0,67076.0,0.00152]
[1772980997160,0.02078571,67085.0,67075.0,0.00036]
[1772980997368,0.02078571,67085.0,67077.0,0.00152]
[1772980997725,0.02078571,67085.0,67071.0,0.0003548]
[1772980997726,0.14547798,67085.0,67071.0,0.0003548]
[1772980997927,0.02078571,67084.0,67071.0,0.0003548]
[1772980998131,0.07453119,67086.0,67059.0,0.07541899]
[1772980998132,0.14547798,67083.0,67059.0,0.07541899]
[1772980998342,0.07453119,67086.0,67059.0,0.07541899]
[1772980998343,0.02078571,67080.0,67060.0,0.00152]
[1772980998541,0.07453119,67086.0,67059.0,0.0008589]
[1772980998542,0.14547798,67078.0,67059.0,0.0008589]
[1772980998901,0.07454231,67076.0,67059.0,0.0008589]
[1772980999147,0.02078571,67075.0,67059.0,0.0008589]
[1772980999365,0.02078571,67074.0,67059.0,0.0008589]
[1772980999563,0.02078571,67073.0,67060.0,0.00152]
[1772980999888,0.02078571,67073.0,67061.0,0.00152]
[1772981000538,0.02090487,67073.0,67061.0,0.00152]
[1772981001211,0.07454675,67072.0,67061.0,0.00152]
[1772981001406,0.02078571,67071.0,67061.0,0.00152]
[1772981001624,0.02078571,67087.0,67062.0,0.07455787]
[1772981001843,0.02078571,67087.0,67063.0,0.14382767]
[1772981002264,0.14547798,67085.0,67063.0,0.14382767]
[1772981002486,0.02071071,67084.0,67063.0,0.14382767]
[1772981002694,0.02071071,67083.0,67063.0,0.14382767]
[1772981003281,0.02071071,67081.0,67064.0,0.21818331]
[1772981003467,0.07453564,67082.0,67065.0,0.14362767]
[1772981004540,0.07452897,67088.0,67065.0,0.14362767]
[1772981004541,0.0745212,67095.0,67065.0,0.14362767]
[1772981004742,0.02071071,67094.0,67065.0,0.14362767]
[1772981005328,0.02071071,67092.0,67067.0,0.14362767]
[1772981005525,0.07452342,67093.0,67066.0,0.07455342]
[1772981005526,0.02071071,67090.0,67068.0,0.00152]
[1772981005847,0.14547798,67087.0,67065.0,0.07455342]
[1772981006079,0.07452342,67093.0,67058.0,0.00012]
[1772981006080,0.14798546,67080.0,67058.0,0.00012]
[1772981006251,0.14547798,67075.0,67060.0,0.00152]
[1772981006434,0.14838392,67080.0,67061.0,0.00152]
[1772981006435,0.02071071,67072.0,67061.0,0.00152]
[1772981006629,0.02071071,67070.0,67061.0,0.00152]
[1772981007242,0.02071071,67068.0,67061.0,0.00152]
[1772981008063,0.07455009,67069.0,67061.0,0.00152]
[1772981008464,0.07455009,67069.0,67057.0,0.14362767]
[1772981008465,0.02071071,67068.0,67062.0,0.00152]
[1772981008672,0.02071071,67068.0,67063.0,0.00152]
[1772981008913,0.02071071,67068.0,67052.0,0.08031835]
[1772981009041,0.02071071,67068.0,67053.0,0.14514767]
[1772981009241,0.02071071,67066.0,67053.0,0.14514767]
[1772981009703,0.07455231,67067.0,67053.0,0.07608774]
[1772981009903,0.07455231,67067.0,67058.0,0.0002]
[1772981010105,0.02071071,67066.0,67058.0,0.0002]
[1772981010308,0.02071071,67066.0,67059.0,0.00152]
[1772981010544,0.02071071,67066.0,67058.0,0.0002]
[1772981010545,0.02071071,67066.0,67060.0,0.00152]
[1772981010746,0.02071071,67066.0,67058.0,0.0002]
[1772981010966,0.02071071,67066.0,67059.0,0.00152]
[1772981011357,0.07455453,67065.0,67060.0,0.00152]
[1772981011573,0.02071071,67064.0,67060.0,0.00152]
[1772981011869,0.02071071,67064.0,67061.0,0.00152]
[1772981012272,0.02071071,67064.0,67062.0,0.00152]
[1772981012474,0.02071071,67064.0,67063.0,0.00152]
[1772981012713,0.02071071,67064.0,67058.0,0.0002]
[1772981012871,0.02071071,67064.0,67063.0,0.00152]
[1772981013063,0.02071071,67064.0,67058.0,0.0002]
[1772981013288,0.02071071,67064.0,67059.0,0.00152]
[1772981013635,0.02071071,67062.0,67059.0,0.00152]
[1772981014664,0.02071071,67062.0,67060.0,0.00152]
[1772981014835,0.02071071,67062.0,67061.0,0.00152]
[1772981015049,0.07455676,67063.0,67041.0,0.07492112]
[1772981015050,0.02071071,67060.0,67041.0,0.07492112]
[1772981015219,0.02071071,67060.0,67042.0,0.00152]
[1772981015426,0.02071071,67055.0,67043.0,0.00152]
[1772981015624,0.02071071,67055.0,67041.0,0.0003402]
[1772981015625,0.02067071,67055.0,67041.0,0.0003402]
[1772981015980,0.02067071,67055.0,67042.0,0.00152]
[1772981016674,0.02106892,67055.0,67042.0,0.00152]
[1772981017051,0.00039821,67055.0,67043.0,0.14400575]
[1772981018188,0.07304677,67054.0,67043.0,0.14400575]
[1772981018335,0.07000679,67054.0,67043.0,0.14400575]
[1772981018542,0.06696681,67054.0,67042.0,0.07629918]
[1772981018742,0.06392683,67054.0,67043.0,0.14400575]
[1772981018951,0.05632683,67054.0,67043.0,0.14400575]
[1772981019204,0.05024683,67054.0,67043.0,0.14400575]
[1772981019500,0.02054071,67053.0,67043.0,0.14400575]
[1772981019809,0.02054071,67053.0,67042.0,0.0762994]
[1772981019967,0.02054071,67053.0,67042.0,0.14572575]
[1772981020174,0.07456899,67052.0,67042.0,0.14572575]
[1772981020396,0.02061571,67051.0,67043.0,0.00152]
[1772981020782,0.02432104,67054.0,67043.0,0.14552575]
[1772981021034,0.07455676,67063.0,67044.0,0.14400575]
[1772981021213,0.07455676,67063.0,67044.0,0.14440396]
[1772981022191,0.07455676,67063.0,67045.0,0.07457677]
[1772981022392,0.07455676,67063.0,67046.0,0.14400575]
[1772981023020,0.02061571,67067.0,67046.0,0.14400575]
[1772981023021,0.07450786,67073.0,67046.0,0.14400575]
[1772981023225,0.02061571,67072.0,67046.0,0.14400575]
[1772981023589,0.07454453,67074.0,67046.0,0.14400575]
[1772981024034,0.0004,67075.0,67047.0,0.112975]
[1772981024253,0.08028929,67079.0,67053.0,0.14400575]
[1772981024446,0.08028948,67079.0,67055.0,0.14400575]
[1772981024672,0.00575,67079.0,67055.0,0.14400575]
[1772981024915,0.2221163,67090.0,67058.0,0.919734]
[1772981025088,0.02061571,67092.0,67059.0,0.14400575]
[1772981025300,0.02061571,67092.0,67061.0,0.14400575]
[1772981025301,0.07452564,67091.0,67061.0,0.14400575]
[1772981025636,0.07452564,67091.0,67063.0,0.14400575]
[1772981025982,0.07452543,67092.0,67063.0,0.14400575]
[1772981026189,0.07451902,67097.0,67064.0,0.07455564]
[1772981026438,0.09513473,67097.0,67065.0,0.14400575]
[1772981026903,0.07451902,67097.0,67065.0,0.14400575]
[1772981027239,0.07451697,67099.0,67067.0,0.14400575]
[1772981027521,0.07451697,67099.0,67069.0,0.14400575]
[1772981027522,0.02061571,67098.0,67069.0,0.14400575]
[1772981028067,0.07463644,67099.0,67074.0,0.00022001]
[1772981028265,0.02061571,67098.0,67075.0,0.14552575]
[1772981028472,0.02061571,67096.0,67077.0,0.14400575]
[1772981030479,0.0745212,67095.0,67079.0,0.14400575]
[1772981030619,0.02061571,67094.0,67079.0,0.14400575]
[1772981032519,0.07452342,67093.0,67080.0,0.07453786]
[1772981032924,0.07452342,67093.0,67080.0,0.21854361]
[1772981033143,0.07452342,67093.0,67081.0,0.14400575]
[1772981033350,0.09513913,67093.0,67081.0,0.14400575]
[1772981034762,0.09513913,67093.0,67082.0,0.07453564]
[1772981035497,0.02061571,67092.0,67082.0,0.07453564]
[1772981036248,0.02061571,67092.0,67083.0,0.00152]
[1772981037571,0.07452564,67091.0,67084.0,0.07453342]
[1772981039686,0.07451956,67097.0,67086.0,0.07453119]
[1772981039915,0.07451956,67097.0,67087.0,0.14400575]
[1772981040651,0.07451845,67098.0,67087.0,0.14400575]
[1772981041264,0.07463645,67099.0,67087.0,0.14400575]
[1772981041535,0.02061571,67098.0,67088.0,0.00152]
[1772981041738,0.07451897,67097.0,67088.0,0.07604848]
[1772981042051,0.09513468,67097.0,67088.0,0.07604848]
[1772981042241,0.02061571,67097.0,67088.0,0.07604848]
[1772981043537,0.02061571,67097.0,67088.0,0.07600848]
[1772981045135,0.09513549,67097.0,67088.0,0.07600848]
[1772981046176,0.07451786,67098.0,67089.0,0.14292687]
[1772981046705,0.07473787,67098.0,67089.0,0.14292687]
[1772981046907,0.07973787,67098.0,67088.0,0.07600848]
[1772981048505,0.07473787,67098.0,67088.0,0.07600848]
[1772981048708,0.005,67097.0,67089.0,0.00152]
[1772981051979,0.07452009,67096.0,67090.0,0.07452675]
[1772981053180,0.07951974,67097.0,67090.0,0.07452675]
[1772981053701,0.005,67097.0,67090.0,0.07452675]
[1772981053898,0.00022001,67098.0,67090.0,0.07452675]
[1772981054219,0.07473794,67098.0,67090.0,0.07452675]
[1772981054813,0.0012,67100.0,67091.0,0.14292687]
[1772981055189,0.0012,67100.0,67073.0,0.14292687]
[1772981055190,0.15874029,67099.0,67073.0,0.14292687]
[1772981055366,0.005,67097.0,67076.0,0.14292687]
[1772981055609,0.005,67095.0,67076.0,0.14292687]
[1772981055743,0.005,67094.0,67076.0,0.14292687]
[1772981055939,0.005,67094.0,67070.0,0.07454897]
[1772981055940,0.04938391,67090.0,67070.0,0.07454897]
[1772981056137,0.005,67086.0,67073.0,0.001]
[1772981056343,0.005,67085.0,67074.0,0.00152]
[1772981056704,0.07452342,67093.0,67075.0,0.14292687]
[1772981056705,0.005,67091.0,67075.0,0.14292687]
[1772981056892,0.005,67091.0,67081.0,0.0002]
[1772981057093,0.005,67091.0,67082.0,0.00152]
[1772981058029,0.07436897,67097.0,67084.0,0.07453342]
[1772981058400,0.03044585,67096.0,67084.0,0.07453342]
[1772981058882,0.15374029,67095.0,67082.0,0.07453539]
[1772981059083,0.03080553,67092.0,67083.0,0.00152]
[1772981059686,0.15374029,67093.0,67081.0,0.0002]
[1772981059687,0.15798119,67091.0,67081.0,0.0002]
[1772981059894,0.03080553,67090.0,67082.0,0.00152]
[1772981060101,0.03080553,67088.0,67082.0,0.00152]
[1772981060457,0.03080553,67088.0,67083.0,0.00152]
[1772981060585,0.03080553,67088.0,67084.0,0.00152]
[1772981060586,0.03098193,67088.0,67084.0,0.00152]
[1772981060789,0.03098193,67088.0,67076.0,0.07454231]
[1772981060991,0.03098193,67088.0,67077.0,0.00152]
[1772981061365,0.03098193,67088.0,67070.0,0.07454844]
[1772981061570,0.03099343,67084.0,67073.0,0.07454552]
[1772981061797,0.03099343,67083.0,67075.0,0.00152]
[1772981062592,0.03099343,67081.0,67075.0,0.00152]
[1772981063567,0.03099343,67081.0,67069.0,0.0002]
[1772981063868,0.03140837,67079.0,67070.0,0.00152]
[1772981064811,0.07454008,67078.0,67070.0,0.07606861]
[1772981065031,0.07461717,67078.0,67070.0,0.07606861]
[1772981066093,0.10627117,67078.0,67075.0,0.0002]
[1772981066272,0.10627117,67078.0,67076.0,0.00152]
[1772981068678,0.0315757,67077.0,67069.0,0.0002]
[1772981068912,0.0315757,67077.0,67070.0,0.00152]
[1772981070186,0.0001764,67083.0,67072.0,0.07454675]
[1772981070388,0.0001764,67083.0,67072.0,0.07466622]
[1772981070623,0.0001764,67083.0,67073.0,0.14366633]
[1772981072355,0.0747401,67097.0,67075.0,0.14366633]
[1772981072576,0.0747401,67097.0,67074.0,0.07454453]
[1772981072577,0.08961943,67097.0,67077.0,0.14366633]
[1772981072769,0.01487933,67096.0,67077.0,0.14366633]
[1772981073599,0.01487933,67096.0,67077.0,0.14466633]
[1772981073836,0.01487933,67096.0,67077.0,0.14366633]
[1772981074220,0.01487933,67096.0,67077.0,0.14466633]
[1772981074523,0.01483137,67094.0,67078.0,0.07454008]
[1772981074686,0.01483137,67094.0,67078.0,0.23316472]
[1772981074874,0.01483137,67094.0,67079.0,0.15862464]
[1772981075075,0.01483137,67094.0,67080.0,0.00152]
[1772981075277,0.01483137,67094.0,67080.0,0.16014464]
[1772981076815,0.0745212,67095.0,67082.0,0.15862464]
[1772981077040,0.07473948,67097.0,67082.0,0.15862464]
[1772981077722,0.09169002,67097.0,67082.0,0.15862464]
[1772981078651,0.07473948,67097.0,67082.0,0.15862464]
[1772981078826,0.09478764,67097.0,67083.0,0.07453453]
[1772981079028,0.09478764,67097.0,67083.0,0.23315917]
[1772981079213,0.09478764,67097.0,67083.0,0.07453453]
[1772981079428,0.09478764,67097.0,67084.0,0.15862464]
[1772981079429,0.00022001,67097.0,67084.0,0.15862464]
[1772981080429,0.07473928,67097.0,67084.0,0.15862464]
[1772981081144,0.07473928,67097.0,67086.0,0.15862464]
[1772981081366,0.00022001,67097.0,67088.0,0.15862464]
[1772981081566,0.07602728,67100.0,67088.0,0.15862464]
[1772981082175,7.001e-05,67102.0,67088.0,0.15862464]
[1772981082370,0.07473078,67105.0,67088.0,0.15862464]
[1772981082567,0.00022001,67105.0,67088.0,0.15862464]
[1772981082768,0.00022001,67109.0,67088.0,0.15862464]
[1772981083190,0.00022001,67109.0,67091.0,0.15862464]
[1772981083492,0.07472405,67111.0,67090.0,0.07452675]
[1772981083493,1e-08,67111.0,67090.0,0.07452675]
[1772981084199,1e-08,67111.0,67091.0,0.15862464]
[1772981085212,1e-08,67111.0,67093.0,0.15862464]
[1772981085413,1e-08,67111.0,67094.0,0.14348]
[1772981085617,1e-08,67117.0,67094.0,0.32384]
[1772981085827,0.09449758,67124.0,67095.0,0.15862464]
[1772981086005,0.09449758,67124.0,67097.0,0.15862464]
[1772981086404,0.09489591,67124.0,67097.0,0.15862464]
[1772981087149,0.09489591,67124.0,67096.0,0.32384]
[1772981087150,0.00039833,67124.0,67099.0,0.15862464]
[1772981087447,0.00039833,67124.0,67101.0,0.15862464]
[1772981087799,0.07448351,67129.0,67101.0,0.15862464]
[1772981087997,0.00011944,67129.0,67101.0,0.15862464]
[1772981088409,0.00011944,67129.0,67100.0,0.07491564]
[1772981088410,0.01901094,67127.0,67102.0,0.00152]
[1772981088615,0.01901094,67125.0,67103.0,0.16014464]
[1772981088815,0.02912679,67124.0,67104.0,0.00152]
[1772981089012,0.02912679,67124.0,67105.0,0.15862464]
[1772981089413,0.02912679,67122.0,67107.0,0.07450787]
[1772981089644,0.02912679,67122.0,67108.0,0.00152]
[1772981090266,0.02912679,67122.0,67107.0,0.07450787]
[1772981090267,0.02912679,67122.0,67109.0,0.00152]
[1772981091555,0.07449011,67123.0,67110.0,0.07450454]
[1772981091556,0.02912679,67120.0,67110.0,0.07450454]
[1772981094671,0.10362035,67120.0,67110.0,0.07450454]
[1772981096337,0.02912679,67120.0,67110.0,0.07450454]
[1772981098317,0.10361135,67128.0,67111.0,0.15862464]
[1772981098522,0.07448456,67128.0,67113.0,0.15862464]
[1772981098869,0.02912679,67127.0,67113.0,0.15862464]
[1772981099295,0.02912679,67127.0,67112.0,0.07450232]
[1772981099866,0.02897679,67127.0,67112.0,0.07450232]
[1772981101449,0.03137823,67128.0,67112.0,0.07450232]
[1772981101688,0.10586312,67128.0,67113.0,0.15862464]
[1772981101914,0.03137823,67127.0,67111.0,0.07450232]
[1772981104530,0.03138411,67125.0,67112.0,0.00152]
[1772981106346,0.03138411,67125.0,67112.0,0.00148]
[1772981106550,0.03138411,67125.0,67113.0,0.07450121]
[1772981107267,0.07448601,67127.0,67114.0,0.15755803]
[1772981107477,0.10510316,67127.0,67114.0,0.12607187]
[1772981107997,0.03061715,67126.0,67114.0,0.12607187]
[1772981109421,0.03049754,67125.0,67113.0,0.07450121]
[1772981111940,0.03038687,67125.0,67113.0,0.07450121]
[1772981113978,0.03027482,67123.0,67113.0,0.07450121]
[1772981114185,0.15447157,67122.0,67103.0,0.07451149]
[1772981114356,0.15447157,67118.0,67103.0,0.07603149]
[1772981114583,0.03027482,67116.0,67103.0,0.07451149]
[1772981114778,0.03027482,67115.0,67103.0,0.07451149]
[1772981114981,0.03078266,67113.0,67101.0,0.07471357]
[1772981115199,0.03078266,67109.0,67101.0,0.07451357]
[1772981115406,0.03078266,67109.0,67102.0,0.00152]
[1772981116248,0.03078266,67109.0,67103.0,0.07451231]
[1772981116749,0.07450199,67113.0,67103.0,0.23207034]
[1772981116945,0.03078266,67124.0,67104.0,0.15755803]
[1772981117150,0.15447157,67124.0,67104.0,0.15755803]
[1772981117354,0.03078266,67123.0,67104.0,0.15755803]
[1772981118321,0.03078266,67121.0,67105.0,0.07451009]
[1772981118518,0.07449122,67122.0,67106.0,0.00152]
[1772981118519,0.15447157,67118.0,67106.0,0.00152]
[1772981118797,0.03078266,67117.0,67106.0,0.00152]
[1772981119023,0.03078266,67117.0,67107.0,0.00152]
[1772981119605,0.03078266,67117.0,67108.0,0.00152]
[1772981120227,0.03162585,67115.0,67100.0,0.07491469]
[1772981120431,0.03162585,67115.0,67101.0,0.07603453]
[1772981120432,0.15447157,67111.0,67101.0,0.07603453]
[1772981120604,0.03162585,67110.0,67101.0,0.07603453]
[1772981121032,0.03162585,67110.0,67102.0,0.00152]
[1772981121624,0.03162585,67110.0,67101.0,0.07451453]
[1772981121812,0.07450121,67113.0,67103.0,0.00152]
[1772981122013,0.03151929,67112.0,67103.0,0.00152]
[1772981122448,0.03151929,67110.0,67103.0,0.00152]
[1772981123076,0.03151929,67110.0,67102.0,0.07451326]
[1772981123303,0.03151929,67110.0,67104.0,0.00152]
[1772981123777,0.03151929,67110.0,67105.0,0.00152]
[1772981124742,0.03164387,67108.0,67105.0,0.00152]
[1772981125886,0.03164387,67108.0,67105.0,0.00191833]
[1772981126769,0.07450787,67107.0,67105.0,0.00191833]
[1772981127053,0.03146236,67106.0,67105.0,0.00191833]
[1772981127860,0.03146236,67106.0,67105.0,0.00172]
[1772981128009,0.03146236,67106.0,67105.0,0.00152]
[1772981128209,0.07450787,67109.0,67105.0,0.00152]
[1772981128410,0.001,67106.0,67105.0,0.00152]
[1772981128614,0.03246236,67106.0,67105.0,0.00152]
[1772981128905,0.07550898,67106.0,67100.0,0.0004]
[1772981129109,0.03143189,67103.0,67098.0,0.00152]
[1772981129325,0.03143189,67103.0,67099.0,0.00152]
[1772981130559,0.03243189,67103.0,67099.0,0.00152]
[1772981131029,0.03142692,67101.0,67099.0,0.00152]
[1772981132815,0.07451564,67100.0,67094.0,1e-08]
[1772981132998,0.14607905,67098.0,67087.0,1e-08]
[1772981133203,0.03142199,67095.0,67088.0,0.00152]
[1772981133434,0.03142199,67095.0,67080.0,0.07481261]
[1772981133435,0.14607905,67093.0,67089.0,0.00152]
[1772981133636,0.03142199,67092.0,67080.0,0.07481261]
[1772981133831,0.03142199,67092.0,67081.0,0.00152]
[1772981134163,0.03142199,67092.0,67082.0,0.00152]
[1772981134515,0.1461985,67093.0,67077.0,0.00016]
[1772981134516,0.03142199,67088.0,67077.0,0.00016]
[1772981134716,0.03142199,67087.0,67077.0,0.00016]
[1772981135057,0.03141707,67085.0,67078.0,0.00152]
[1772981137056,0.07453342,67084.0,67078.0,0.00152]
[1772981137280,0.03141426,67082.0,67078.0,0.00152]
[1772981137491,0.03126275,67082.0,67078.0,0.00152]
[1772981137703,0.07453342,67084.0,67071.0,0.00373545]
[1772981137704,0.14607905,67081.0,67071.0,0.00373545]
[1772981137914,0.03133851,67080.0,67072.0,0.00152]
[1772981139063,0.07454231,67076.0,67064.0,1e-08]
[1772981139279,0.03133451,67071.0,67064.0,1e-08]
[1772981139484,0.07454231,67078.0,67064.0,1e-08]
[1772981139485,0.07453761,67081.0,67065.0,0.00152]
[1772981139710,0.03133451,67078.0,67064.0,1e-08]
[1772981139926,0.03133451,67078.0,67065.0,0.00152]
[1772981140344,0.074539,67077.0,67065.0,0.00152]
[1772981140546,0.03133451,67076.0,67065.0,0.00159709]
[1772981141299,0.03133451,67076.0,67066.0,0.07455342]
[1772981141300,0.03132965,67074.0,67066.0,0.07455342]
[1772981141499,0.03132965,67074.0,67066.0,0.07607342]
[1772981142053,0.03132965,67074.0,67066.0,0.00152]
[1772981142457,0.03132965,67072.0,67065.0,7.709e-05]
[1772981142660,0.074539,67073.0,67064.0,1e-08]
[1772981142661,0.03132965,67070.0,67064.0,1e-08]
[1772981142858,0.14607905,67070.0,67064.0,1e-08]
[1772981143063,0.0312505,67069.0,67064.0,1e-08]
[1772981143261,0.0312505,67069.0,67052.0,0.080318]
[1772981143467,0.0312505,67067.0,67056.0,0.00152]
[1772981144356,0.0312505,67067.0,67052.0,0.08031852]
[1772981144553,0.07453899,67068.0,67050.0,0.0012]
[1772981144554,0.0312505,67063.0,67050.0,0.0012]
[1772981144866,0.03116993,67059.0,67051.0,0.00152]
[1772981145184,0.03101839,67059.0,67051.0,0.00152]
[1772981145387,0.03109416,67057.0,67051.0,0.00172]
[1772981145590,0.03094261,67057.0,67051.0,0.00172]
[1772981146731,0.07455824,67062.0,67051.0,0.00172]
[1772981146732,0.07455411,67066.0,67051.0,0.07628899]
[1772981147079,0.07455231,67067.0,67051.0,0.07628899]
[1772981147294,0.07455231,67067.0,67051.0,0.07476998]
[1772981147295,0.03185816,67064.0,67051.0,0.07476998]
[1772981147445,0.03185816,67062.0,67052.0,0.07456885]
[1772981147642,0.03185816,67062.0,67052.0,0.07608885]
[1772981148058,0.07455676,67063.0,67053.0,0.15637419]
[1772981148443,0.07455676,67063.0,67052.0,0.07456885]
[1772981148673,0.03185816,67062.0,67051.0,0.0002]
[1772981148874,0.03196821,67061.0,67052.0,0.00152]
[1772981149250,0.03196821,67061.0,67051.0,0.0002]
[1772981149597,0.03196821,67059.0,67052.0,0.00152]
[1772981149814,0.03196821,67057.0,67052.0,0.00152]
[1772981150111,0.03166514,67057.0,67052.0,0.00152]
[1772981150250,0.07456009,67060.0,67053.0,0.15485419]
[1772981150699,0.07456009,67060.0,67052.0,0.00152]
[1772981150873,0.03172892,67059.0,67052.0,0.00152]